Cogmind - Beta 10.2 @@@ ROGUE MODE // 2021.05.13 @ 23:12:17 Player: thingamajigger Result: Self-destructed Performance ------------- Evolutions (7) 3500 Regions Visited (27) 5400 Robots Destroyed (222) 1110 Value Destroyed (12990) 12990 Prototype IDs (36) 720 Alien Tech Used (0) 0 Bonus (9524) 9524 TOTAL SCORE: 33244 Bonus ------- High Alert Combat Kills 769 Follower Combat Kills 4104 Entered Garrisons 1600 Used RIF Installer 3500 Aligned with FarCom 300 Friendly Fire -749 Cogmind --------- Core Integrity 596/1300 Matter 290/300 Energy 1/100 System Corruption 15% Temperature Cool (0) Movement Rolling (105) Ox1 Location -3/Garrison Parts ------- > --- POWER (1) -------- (None) > --- PROPULSION (2) --- Compact Wheel Centrium Wheel > --- UTILITY (15) ----- Power Amplifier Advanced Heat Sink High-capacity Storage Unit Advanced Particle Charger Relay Coupler [NC] (30) Relay Coupler [ARC] (13) Relay Coupler [ARC] (12) Relay Coupler [Swarmer] (5) Relay Coupler [Swarmer] (45) Relay Coupler [Grunt] (1) Relay Coupler [Brawler] (13) Relay Coupler [Duelist] (13) Relay Coupler [Sentry] (13) Relay Coupler [Hunter] (1) > --- WEAPON (3) ------- Plasma Rifle Compact HERF Cannon > --- INVENTORY (12) --- Compact Wheel Compact Wheel Matter Compressor (250) Relay Coupler [NC] (31) Relay Coupler [Swarmer] (39) Relay Coupler [Brawler] (28) Relay Coupler [Duelist] (30) Relay Coupler [Demolisher] (24) Drone Bay (2/2) Heavy Machine Gun Advanced Remote Datajack Peak State ------------ > --- POWER ------------ Reinforced Fission Core > --- PROPULSION ------- Armored Heavy Treads > --- UTILITY ---------- Advanced Heat Sink Large Storage Unit High-capacity Storage Unit Improved Core Analyzer Relay Coupler [NC] Relay Coupler [ARC] Relay Coupler [ARC] Relay Coupler [Swarmer] Relay Coupler [Grunt] Relay Coupler [Brawler] Relay Coupler [Duelist] Relay Coupler [Sentry] Relay Coupler [Hunter] Relay Coupler [Hunter] Improved System Restoration Module > --- WEAPON ----------- Gamma Rifle Quantum Rifle Advanced Remote Datajack > --- INVENTORY -------- Light Antimatter Reactor Centrium Wheel Matter Compressor Improved Particle Charger Relay Coupler [NC] Relay Coupler [Swarmer] Relay Coupler [Grunt] Relay Coupler [Duelist] Relay Coupler [Sentry] Relay Coupler [Demolisher] Relay Coupler [Hunter] Smartbomb Launcher Smartbomb Launcher Advanced Remote Datajack Advanced Remote Datajack Great Maul [Rating: 113] Favorites ----------- Power Improved Ion Engine Engine Improved Ion Engine Power Core Reinforced Fission Core Reactor Light Antimatter Reactor Propulsion Armored Huge Wheel Treads Light Treads Leg Flexi-carbon Leg Wheel Armored Huge Wheel Utility Large Storage Unit Device Improved Heat Sink Storage Large Storage Unit Processor Advanced Targeting Computer Hackware Relay Coupler [Hunter] Protection Layered Heavy Armor Plating Weapon Gauss Rifle Energy Gun Tesla Rifle Energy Cannon Beam Cannon Ballistic Gun Gauss Rifle Ballistic Cannon Flak Cannon Launcher EMP Blaster Special Weapon Advanced Remote Datajack Impact Weapon Heavy Mace Build | -11 -10 -10 -9 -9 -9 -8 -8 -8 -8 -7 -7 -7 -7 -6 -6 -6 -6 -5 -5 -5 -5 -4 -4 -4 -4 -3 -3 ------- Run | Scr Mat Min Mat Min Exi Min Mat Gar Mat Fac Gar Fac Gar Fac Gar Fac Gar Fac Was Fac Gar Fac Was Fac Gar Res Gar Slots Evolved 14 | . . . 2 . . . 2 . . 2 . . . 2 . . . 2 . . . 2 . . . 2 . Power . | . . . . . . . . . . . . . . . . . . . . . . . . . . . . Propulsion . | . . . . . . . . . . . . . . . . . . . . . . . . . . . . Utility 13 | . . . 2 . . . 2 . . 2 . . . 1 . . . 2 . . . 2 . . . 2 . Weapon 1 | . . . . . . . . . . . . . . 1 . . . . . . . . . . . . . Parts Attached 265 | 7 4 2 8 . 3 2 19 7 14 9 5 1 4 15 13 2 10 5 2 18 12 8 1 . 38 46 10 Power 20 | 2 . . 2 . . 1 2 . 1 . 1 . 1 1 1 . . . . 1 . 1 . . 3 2 1 Engine 10 | 2 . . 2 . . 1 2 . 1 . 1 . . . 1 . . . . . . . . . . . . Core 6 | . . . . . . . . . . . . . 1 1 . . . . . 1 . 1 . . 2 . . Reactor 4 | . . . . . . . . . . . . . . . . . . . . . . . . . 1 2 1 Propulsion 27 | 2 . . 1 . . . 2 1 1 1 . . 1 . 1 . . . . . . 1 . . 6 9 1 Treads 10 | 2 . . 1 . . . 2 1 . . . . . . . . . . . . . . . . 3 1 . Leg 8 | . . . . . . . . . . . . . . . . . . . . . . . . . 2 6 . Wheel 9 | . . . . . . . . . 1 1 . . 1 . 1 . . . . . . 1 . . 1 2 1 Hover . | . . . . . . . . . . . . . . . . . . . . . . . . . . . . Flight . | . . . . . . . . . . . . . . . . . . . . . . . . . . . . Utility 124 | 1 3 . 1 . 3 . 9 1 6 5 1 1 2 4 9 2 9 4 2 6 7 5 1 . 19 18 5 Device 29 | . . . . . . . 3 1 1 1 . . 1 1 1 . . . . 2 3 1 1 . 3 7 3 Storage 19 | 1 3 . 1 . 3 . 1 . 3 . . . . . . . 2 . 1 1 . . . . 1 2 . Processor 8 | . . . . . . . 1 . . 1 . . . 1 . . . 1 . . . 1 . . 1 2 . Hackware 46 | . . . . . . . 2 . . . . . . 1 8 2 6 1 1 2 3 1 . . 12 5 2 Protection 22 | . . . . . . . 2 . 2 3 1 1 1 1 . . 1 2 . 1 1 2 . . 2 2 . Artifact . | . . . . . . . . . . . . . . . . . . . . . . . . . . . . Weapon 94 | 2 1 2 4 . . 1 6 5 6 3 3 . . 10 2 . 1 1 . 11 5 1 . . 10 17 3 Energy Gun 21 | 1 1 . 1 . . 1 1 . . . . . . 1 . . . . . 6 . . . . 3 5 1 Energy Cannon 6 | . . 1 . . . . . . . . . . . . . . . 1 . . 2 . . . 1 1 . Ballistic Gun 31 | 1 . 1 2 . . . 5 2 1 2 2 . . 4 1 . 1 . . 3 1 1 . . 2 2 . Ballistic Cannon 2 | . . . . . . . . . 2 . . . . . . . . . . . . . . . . . . Launcher 15 | . . . 1 . . . . 3 3 . 1 . . 1 1 . . . . . . . . . . 3 2 Special Weapon 12 | . . . . . . . . . . . . . . 1 . . . . . 2 2 . . . 3 4 . Impact Weapon 7 | . . . . . . . . . . 1 . . . 3 . . . . . . . . . . 1 2 . Slashing Weapon . | . . . . . . . . . . . . . . . . . . . . . . . . . . . . Piercing Weapon . | . . . . . . . . . . . . . . . . . . . . . . . . . . . . Special Melee Weapon . | . . . . . . . . . . . . . . . . . . . . . . . . . . . . Unidentified Prototypes 4 | . . . 1 . . . . . . . . . . . . . . 1 . . . . . . . 2 . Parts Lost 97 | . . . 4 . . 1 6 3 3 2 4 . 3 6 1 . 1 5 4 . 2 5 1 . 23 18 5 Power 12 | . . . 2 . . 1 1 . 1 . 1 . 1 . . . . 1 . . . 1 . . 1 1 1 Propulsion 11 | . . . 1 . . . 1 2 . . . . 1 . . . . . . . . 1 . . 3 2 . Utility 36 | . . . . . . . 2 . . 2 1 . 1 2 . . . 2 3 . 1 2 1 . 11 6 2 Weapon 38 | . . . 1 . . . 2 1 2 . 2 . . 4 1 . 1 2 1 . 1 1 . . 8 9 2 Highest Loss Streak 12 | . . . 2 . . 1 3 1 1 1 2 . 2 2 1 . 1 4 4 . 2 5 1 . 12 7 3 Average Slot Usage (%) 90 | . 99 100 84 88 88 88 96 98 89 90 91 92 91 89 91 92 89 80 64 79 88 89 91 84 91 88 92 Engine 4 | . 14 14 10 11 11 11 9 9 9 7 7 7 4 . 5 6 6 3 . . . . . . . . . Core 1 | . . . . . . . . . . . . . 1 6 . . . . . 3 5 4 5 5 4 3 . Treads 6 | . 28 28 22 22 22 22 17 16 . . . . . . . . . . . . . . . . 4 2 . Wheel 3 | . . . . . . . . . 8 7 7 7 7 6 5 6 6 5 5 5 5 4 5 5 . . 9 Device 5 | . . . . . . . 16 7 9 6 7 7 7 6 10 6 . . . . 2 8 8 5 6 5 5 Storage 18 | . 27 28 30 33 33 33 27 27 27 23 23 23 23 20 20 20 20 17 11 7 11 10 10 10 12 10 6 Processor 6 | . . . . . . . 1 9 9 14 15 15 15 13 13 9 6 7 11 8 5 8 10 10 9 2 . Hackware 16 | . . . . . . . . 10 . . . . . . 7 16 25 24 23 30 32 26 26 26 29 42 47 Protection 5 | . . . . . . . 6 . 8 14 14 15 15 17 6 6 5 6 5 3 5 8 8 5 2 2 3 Energy Gun 3 | . 14 5 2 11 11 20 4 . . . . . . . . . . . . 7 5 . . . 2 2 1 Ballistic Gun 7 | . 14 14 9 . . . 13 11 11 7 12 15 15 13 6 6 8 9 2 3 5 9 10 10 4 2 . Launcher 2 | . . . 2 11 11 1 . 6 4 4 2 . . 2 4 6 1 . . . . . . . . 2 1 Special Weapon 2 | . . . . . . . . . . . . . . . 6 6 6 1 . 2 2 5 5 5 5 3 3 Naked Turns . | . . . . . . . . . . . . . . . . . . . . . . . . . . . . Heaviest Build 117 | 12 41 44 60 57 73 59 92 82 109 114 106 102 102 114 110 109 109 117 117 98 103 85 85 76 107 113 105 Greatest Support 60 | 40 40 40 40 40 40 40 40 40 28 28 28 28 28 28 28 28 28 28 28 28 28 28 28 28 46 60 32 Greatest Overweight (x) 25 | 3 1 1 2 1 1 1 2 4 4 4 3 3 3 4 3 3 3 4 4 3 3 25 3 2 4 25 3 Average Overweight (x) 2 | . . 1 1 1 1 1 1 2 2 3 3 3 3 3 3 3 3 3 1 1 2 2 2 2 1 1 2 Largest Inventory Capacity 28 | 6 16 16 22 22 28 22 24 24 26 26 26 26 26 26 26 26 26 26 26 18 18 18 18 18 18 18 18 Average Capacity 20 | 5 14 16 20 22 22 22 23 24 25 26 26 26 26 26 26 26 25 26 17 13 18 18 18 18 18 18 14 Most Carried 26 | 2 6 9 19 20 22 22 24 24 26 26 26 26 26 26 26 26 25 23 20 12 18 17 18 18 18 18 18 Average Carried 18 | 1 4 8 13 19 21 21 23 23 25 25 25 25 24 23 25 25 19 21 12 8 17 14 17 18 14 17 14 Final Capacity 26 | 6 16 16 22 22 22 22 24 24 26 26 26 26 26 26 26 26 26 26 10 18 18 18 18 18 18 18 12 Final Carried 26 | 2 6 9 19 20 22 22 22 24 26 26 25 25 22 25 26 24 21 20 4 12 15 17 18 18 18 17 11 Class Distribution -------------------- 38% | Botlord-Mutant 31% | Hauler-Mutant 18% | Bothacker-Mutant 9% | Mutant Dominant Class ---------------- Mutant | -10/Materials Mutant | -10/Mines Hauler-Mutant | -9/Materials Hauler-Mutant | -9/Mines Hauler-Mutant | -9/Exiles Hauler-Mutant | -8/Mines Hauler-Mutant | -8/Materials Hauler-Mutant | -8/Garrison Hauler-Mutant | -8/Materials Hauler-Mutant | -7/Factory Hauler-Mutant | -7/Garrison Bothacker-Mutant | -7/Factory Bothacker-Mutant | -7/Garrison Bothacker-Mutant | -6/Factory Bothacker-Mutant | -6/Garrison Botlord-Mutant | -6/Factory Botlord-Mutant | -6/Garrison Hauler-Mutant | -5/Factory Hauler-Mutant | -5/Waste Bothacker-Mutant | -5/Factory Botlord-Mutant | -5/Garrison Botlord-Mutant | -4/Factory Botlord-Mutant | -4/Waste Botlord-Mutant | -4/Factory Botlord-Mutant | -4/Garrison Botlord-Mutant | -3/Research Botlord-Mutant | -3/Garrison Resources | -11 -10 -10 -9 -9 -9 -8 -8 -8 -8 -7 -7 -7 -7 -6 -6 -6 -6 -5 -5 -5 -5 -4 -4 -4 -4 -3 -3 ----------- Run | Scr Mat Min Mat Min Exi Min Mat Gar Mat Fac Gar Fac Gar Fac Gar Fac Gar Fac Was Fac Gar Fac Was Fac Gar Res Gar Matter Collected 8632 | 212 191 60 303 36 . 60 546 345 658 129 612 8 391 363 398 204 541 95 . 462 477 101 . . 805 983 652 Remotely . | . . . . . . . . . . . . . . . . . . . . . . . . . . . . Salvage Created 9127 | . 400 . 497 . . 124 1038 421 658 598 672 61 757 479 106 . 63 259 . 267 530 60 . . 673 1205 259 Parts 470 | . 33 . 32 . . 2 47 19 38 45 31 6 41 17 7 . 4 19 . 11 27 5 . . 21 60 5 Haulers Intercepted 5 | . 2 . 1 . . . 1 . 1 . . . . . . . . . . . . . . . . . . Recyclers Shooed 2 | . . . . . . . . . 1 1 . . . . . . . . . . . . . . . . . Parts Field Recycled . | . . . . . . . . . . . . . . . . . . . . . . . . . . . . Retrieved Matter . | . . . . . . . . . . . . . . . . . . . . . . . . . . . . Parts Self-Destructed . | . . . . . . . . . . . . . . . . . . . . . . . . . . . . Prevented . | . . . . . . . . . . . . . . . . . . . . . . . . . . . . Kills | -11 -10 -10 -9 -9 -9 -8 -8 -8 -8 -7 -7 -7 -7 -6 -6 -6 -6 -5 -5 -5 -5 -4 -4 -4 -4 -3 -3 ------- Run | Scr Mat Min Mat Min Exi Min Mat Gar Mat Fac Gar Fac Gar Fac Gar Fac Gar Fac Was Fac Gar Fac Was Fac Gar Res Gar Combat Hostiles Destroyed 177 | . 10 . 10 . . 3 19 10 14 6 14 . 15 12 4 . 1 4 . 2 11 1 . . 14 23 4 Melee 1 | . . . . . . . . . . . . . . . . . . . . . . . . . . 1 . Guns 111 | . 8 . 4 . . 1 19 3 8 4 5 . 15 4 . . 1 3 . 2 11 1 . . 11 10 1 Cannons 12 | . . . 2 . . . . . 4 . . . . . . . . 1 . . . . . . 2 . 3 AOE 48 | . 2 . 4 . . 2 . 5 2 2 7 . . 8 4 . . . . . . . . . . 12 . Classes Destroyed 16 | . 4 . 2 . . . 4 . 2 1 . . 1 1 . . . . . . . . . . . 1 . Worker 7 | . . . . . . . 1 . . 2 . . . . . . . . . . . . . . . 4 . Builder 4 | . . . 1 . . . . . . 2 . . . . . . . . . . . . . . . 1 . Tunneler 2 | . . . . . . . . . 1 1 . . . . . . . . . . . . . . . . . Hauler 5 | . 2 . 1 . . . 1 . 1 . . . . . . . . . . . . . . . . . . Recycler 6 | . . . . . . . 1 . 1 2 . . . . . . . . . 1 . . . . . 1 . Mechanic 3 | . . . . . . . . . . . . . . 3 . . . . . . . . . . . . . Operator 1 | . . . . . . . . . . . . . . . . . . . . . . . . . . 1 . Watcher 14 | . 1 . 2 . . . 1 . 2 5 . 2 . . . . . 1 . . . . . . . . . Swarmer 52 | . 6 . . . . . 4 3 4 . 3 . 4 3 4 . . . . . 6 . . . 4 10 1 Grunt 74 | . 4 . 9 . . 3 5 5 6 2 10 . 4 5 . . 1 1 . 2 3 . . . 7 5 2 Brawler 5 | . . . 1 . . . . . . . . . . 2 . . . . . . . . . . 2 . . Duelist 3 | . . . . . . . . . 1 . . . 1 1 . . . . . . . . . . . . . Sentry 17 | . . . . . . . 8 . 3 1 . . 3 . . . . . . . 1 . . . . 1 . Specialist 4 | . . . . . . . . . . . . . 2 . . . . . . . 2 . . . . . . Hunter 11 | . . . . . . . 2 2 . 1 . . . 1 . . . 2 . . . . . . . 2 1 Programmer 12 | . . . . . . . . . . 1 1 . 1 . . . . 1 . . . 1 . . 1 6 . Thug 2 | . . . . . . . . . . 2 . . . . . . . . . . . . . . . . . Best Kill Streak 9 | . 5 . 4 . . 3 4 2 6 8 9 2 5 6 4 . 1 2 . 1 3 1 . . 3 8 1 Combat Bots Only 9 | . 3 . 3 . . 3 4 2 5 3 9 . 5 4 4 . 1 2 . 1 3 1 . . 4 5 1 Max Kills in Single Turn 4 | . 3 . 3 . . 2 1 2 2 3 3 1 2 3 3 . 1 2 . 1 2 1 . . 1 4 1 Gunslinging 1 | . . . . . . . . . . . . . 1 1 . . . . . . 1 . . . . . . Exploded 3 | . 2 . 2 . . 2 . 2 2 1 3 . . 2 3 . . . . . . . . . . 3 . Melee 1 | . . . . . . . . . . . . . . . . . . . . . . . . . . 1 . Uniques/NPCs Destroyed . | . . . . . . . . . . . . . . . . . . . . . . . . . . . . Combat | -11 -10 -10 -9 -9 -9 -8 -8 -8 -8 -7 -7 -7 -7 -6 -6 -6 -6 -5 -5 -5 -5 -4 -4 -4 -4 -3 -3 -------- Run | Scr Mat Min Mat Min Exi Min Mat Gar Mat Fac Gar Fac Gar Fac Gar Fac Gar Fac Was Fac Gar Fac Was Fac Gar Res Gar Damage Taken 18882 | . 332 . 609 . . 141 1512 340 718 388 722 . 1091 921 162 64 334 542 114 428 919 594 53 293 2949 4493 1163 Core 2810 | . 38 . 90 . . 42 187 49 78 22 60 . 207 188 28 . 43 122 46 23 98 87 . 74 624 556 148 Absorbed by Shields 85 | . . . . . . . . 36 . . . . . . . . . . . . 49 . . . . . . Core Remaining (%) 65 | 100 . 84 . . . 67 . . 42 . . . 58 . . . 69 . . . 71 . . . 31 . . Volleys Fired 758 | . 26 . 39 . . 4 98 37 47 26 36 2 44 25 41 3 44 9 . 20 49 20 . 2 62 91 33 Largest 3 | . 2 . 2 . . 2 2 2 2 2 2 2 2 3 2 1 2 2 . 3 3 2 . 1 2 2 2 Hottest 258 | . 70 . 93 . . 101 112 53 72 56 56 56 56 114 56 30 56 126 . 258 173 123 . 40 133 169 169 Shots Fired 1217 | . 52 . 76 . . 8 196 46 78 40 48 4 87 45 52 4 61 18 . 33 82 28 . 2 101 115 41 Gun 934 | . 52 . 43 . . 5 196 20 54 28 26 4 87 34 31 . 41 15 . 28 72 15 . . 85 79 19 Cannon 66 | . . . 27 . . . . . 9 . . . . . . . . 3 . . 5 1 . . 6 1 14 Launcher 119 | . . . 6 . . 3 . 26 15 12 22 . . 9 5 1 . . . . . . . . . 18 2 Special 98 | . . . . . . . . . . . . . . 2 16 3 20 . . 5 5 12 . 2 10 17 6 Kinetic 751 | . 26 . 39 . . . 172 20 63 28 26 4 87 30 31 . 41 15 . 10 44 15 . . 62 38 . Thermal 189 | . 26 . 27 . . 1 24 . . . . . . 4 . . . 3 . 13 6 1 . . 29 36 19 Explosive 65 | . . . 6 . . 3 . . 15 12 . . . 9 . . . . . . . . . . . 18 2 Electromagnetic 114 | . . . 4 . . 4 . 26 . . 22 . . . 5 1 . . . 5 27 . . . . 6 14 Robot Hit Streak 25 | . 6 . 8 . . 4 18 6 7 10 10 10 17 22 25 18 7 16 . 18 11 8 . 4 8 8 10 Robot Miss Streak 5 | . 3 . 5 . . 1 5 2 4 5 3 . 3 1 2 1 2 2 . 2 4 3 . . 3 3 2 Penetration Max 1 | . . . . . . . . . 1 1 . . 1 . 1 . . 1 . 1 1 . . . . 1 . Secondary Targets 11 | . 1 . . . . . 1 1 1 . . . 3 1 . . . 1 . . 1 . . . . 1 . Max Gunslinging Chain 1 | . 1 . . . . . 1 1 1 . . . 1 1 . . . 1 . . 1 . . . . 1 . Shots Hit Robots 763 | . 35 . 49 . . 6 136 11 44 24 16 3 65 34 31 2 27 16 . 18 48 17 . 2 67 86 26 Core Hits 435 | . 22 1 27 . . 7 45 16 36 33 29 3 29 28 13 2 5 10 . 7 22 2 . . 27 61 10 Critical Hits 20 | . . . . . . . 2 . . 1 . . 3 . 2 . . 1 . 3 2 2 . . 3 1 . Critical Kills 6 | . . . . . . . 2 . . . . . 1 . . . . . . 1 1 1 . . . . . Critical Parts Destroyed 13 | . . . . . . . . . . 1 . . 2 . 1 . . 1 . 2 1 1 . . 3 1 . Melee Attacks 22 | . . . . . . . . . . 1 . . . 3 . . . . . . . . . . 4 14 . Impact 22 | . . . . . . . . . . 1 . . . 3 . . . . . . . . . . 4 14 . Slashing . | . . . . . . . . . . . . . . . . . . . . . . . . . . . . Piercing . | . . . . . . . . . . . . . . . . . . . . . . . . . . . . Sneak Attacks . | . . . . . . . . . . . . . . . . . . . . . . . . . . . . Combat Hostiles . | . . . . . . . . . . . . . . . . . . . . . . . . . . . . Follow-up Attacks . | . . . . . . . . . . . . . . . . . . . . . . . . . . . . Damage Inflicted 23084 | . 518 14 1132 . . 375 2080 732 1348 1788 1396 63 1538 2202 580 107 283 510 . 636 1248 237 . . 1242 4196 859 Guns 13120 | . 408 . 545 . . 68 2080 168 800 672 387 63 1538 521 425 . 283 401 . 620 1087 237 . . 1015 1400 402 Cannons 1352 | . . . 319 . . . . . 125 . . . . . . . . 109 . . 161 . . . 203 . 435 Explosions 8302 | . 109 . 268 . . 307 . 564 423 1086 1009 . . 1672 155 107 . . . . . . . . . 2580 22 Melee 231 | . . . . . . . . . . . . . . . . . . . . . . . . . 24 207 . Ramming 79 | . 1 14 . . . . . . . 30 . . . 9 . . . . . 16 . . . . . 9 . Kinetic 10306 | . 167 . 485 . . . 1763 168 925 672 387 63 1538 453 425 . 283 401 . 312 615 237 . . 738 674 . Thermal 3514 | . 241 . 356 . . 139 317 . . . 260 . . 68 26 . . 109 . 238 189 . . . 480 689 402 Explosive 6182 | . . . 231 . . 168 . . 423 1086 . . . 1672 . . . . . . . . . . . 2580 22 Electromagnetic 2772 | . 109 . 60 . . 68 . 564 . . 749 . . . 129 107 . . . 70 444 . . . . 37 435 Impact 231 | . . . . . . . . . . . . . . . . . . . . . . . . . 24 207 . Slashing . | . . . . . . . . . . . . . . . . . . . . . . . . . . . . Piercing . | . . . . . . . . . . . . . . . . . . . . . . . . . . . . Highest Corruption 15 | . . . 1 1 1 1 . . . . . . . 5 5 5 5 . . . . . . . 5 15 15 Average Corruption 6 | . . . 1 1 1 1 . . . . . . . 5 5 5 5 . . . . . . . 4 12 15 Corruption Purged . | . . . . . . . . . . . . . . . . . . . . . . . . . . . . Effects 252 | . . . 6 1 4 . . . . . . . . 9 25 3 28 . . . . . . . 43 91 42 Message Errors 65 | . . . 4 . 2 . . . . . . . . 3 4 1 7 . . . . . . . 14 24 6 Matter Fused 50 | . . . . . . . . . . . . . . 4 7 . 7 . . . . . . . 8 20 4 Heat Flow Errors 18 | . . . . . . . . . . . . . . . 3 . 2 . . . . . . . 3 4 6 Energy Discharges 24 | . . . . . 1 . . . . . . . . . 6 . 4 . . . . . . . 5 5 3 Parts Rejected 1 | . . . . . . . . . . . . . . . . . . . . . . . . . . 1 . Data Loss (minor) 26 | . . . 2 1 1 . . . . . . . . 1 3 1 2 . . . . . . . 4 10 1 Data Loss (major) 11 | . . . . . . . . . . . . . . . . . 2 . . . . . . . 5 3 1 Misfires 9 | . . . . . . . . . . . . . . . 1 1 1 . . . . . . . 1 1 4 Alerts 3 | . . . . . . . . . . . . . . . . . . . . . . . . . . 2 1 Misdirections 17 | . . . . . . . . . . . . . . . . . . . . . . . . . . 10 7 Targeting Errors 27 | . . . . . . . . . . . . . . 1 1 . 2 . . . . . . . 3 11 9 Weapon Failures 1 | . . . . . . . . . . . . . . . . . 1 . . . . . . . . . . Overload Shots 7 | . . . . . . . . . . . . . . . . . . . . 7 . . . . . . . Effects 1 | . . . . . . . . . . . . . . . . . . . . 1 . . . . . . . Energy Bleed 1 | . . . . . . . . . . . . . . . . . . . . 1 . . . . . . . Overflow Damage 515 | . . . 4 . . . . 5 27 104 8 . . 117 . . . . . . 37 . . . 21 192 . Projectiles 48 | . . . . . . . . . . . . . . . . . . . . . 37 . . . 11 . . Explosions 430 | . . . 4 . . . . 5 27 104 8 . . 117 . . . . . . . . . . . 165 . Melee 37 | . . . . . . . . . . . . . . . . . . . . . . . . . 10 27 . Knockbacks 3 | . . . . . . . . . 2 . . . . . . . . . . . . . . . . 1 . Impact 1 | . . . . . . . . . . . . . . . . . . . . . . . . . . 1 . Kinetic 2 | . . . . . . . . . 2 . . . . . . . . . . . . . . . . . . Secondary . | . . . . . . . . . . . . . . . . . . . . . . . . . . . . Self-Inflicted Damage 775 | . 79 . 26 . . 47 . 20 . 84 . . . 193 . 11 . . . 8 . . . . . 150 157 Shots 20 | . 2 . 1 . . 2 . 4 . 3 . . . 3 . 1 . . . . . . . . . 2 2 Rammed 6 | . 1 2 . . . . . . . 1 . . . 1 . . . . . 1 . . . . . . . Targets Rammed 7 | . 1 2 . . . . . . . 1 . . . 1 . . . . . 1 . . . . . 1 . Kicked 1 | . . . . . . . . . . . . . . . . . . . . . . . . . . 1 . Crushed . | . . . . . . . . . . . . . . . . . . . . . . . . . . . . Highest Temperature 576 | . 117 . 145 . . 63 178 24 124 24 . . . 84 200 . 164 27 . 576 382 . . 7 230 237 253 Average Temperature 69 | . 33 . 37 . . 31 53 8 51 11 . . . 33 57 . 38 10 . 168 113 . . 7 75 55 76 Received Heat Transfer 3144 | . 102 . 249 . . 54 405 84 216 126 180 . 267 96 45 18 108 36 . 72 81 111 . 51 456 225 162 Effects 12 | . . . . . . . . . . . . . . . . . . . . 7 2 . . . . . 3 Shutdowns 1 | . . . . . . . . . . . . . . . . . . . . 1 . . . . . . . Energy Bleed 2 | . . . . . . . . . . . . . . . . . . . . 1 1 . . . . . . Interference 6 | . . . . . . . . . . . . . . . . . . . . 3 . . . . . . 3 Matter Decay 2 | . . . . . . . . . . . . . . . . . . . . 1 1 . . . . . . Damage (major) 1 | . . . . . . . . . . . . . . . . . . . . 1 . . . . . . . Siege Activations . | . . . . . . . . . . . . . . . . . . . . . . . . . . . . Robots Corrupted 4 | . . . . . . . . 2 . . 2 . . . . . . . . . . . . . . . . Combat Hostiles 4 | . . . . . . . . 2 . . 2 . . . . . . . . . . . . . . . . Parts Fried 3 | . . . . . . . . 1 . . 2 . . . . . . . . . . . . . . . . Impact Corruptions 3 | . . . . . . . . . . . . . . . . . . . . . . . . . 1 2 . Robots Melted . | . . . . . . . . . . . . . . . . . . . . . . . . . . . . Combat Hostiles . | . . . . . . . . . . . . . . . . . . . . . . . . . . . . Parts Melted 12 | . 1 . 2 . . . 2 . . . . . . 1 . . . . . . . . . . . 6 . Heat Transferred 5884 | . 668 . 716 . . 150 703 . . . 350 . . 148 50 . . 111 . 298 137 . . . 788 1066 699 Parts Sabotaged . | . . . . . . . . . . . . . . . . . . . . . . . . . . . . Parts Stolen . | . . . . . . . . . . . . . . . . . . . . . . . . . . . . Parts Stripped . | . . . . . . . . . . . . . . . . . . . . . . . . . . . . Power Chain Reactions 6 | . . . 1 . . 1 . . . . 3 . . . 1 . . . . . . . . . . . . Missiles Intercepted . | . . . . . . . . . . . . . . . . . . . . . . . . . . . . Alert | -11 -10 -10 -9 -9 -9 -8 -8 -8 -8 -7 -7 -7 -7 -6 -6 -6 -6 -5 -5 -5 -5 -4 -4 -4 -4 -3 -3 ------- Run | Scr Mat Min Mat Min Exi Min Mat Gar Mat Fac Gar Fac Gar Fac Gar Fac Gar Fac Was Fac Gar Fac Was Fac Gar Res Gar Peak Influence 892 | . 266 103 424 165 . 85 247 478 465 432 650 399 629 545 831 515 779 573 120 143 892 886 303 225 499 666 863 Initial 473 | . . 103 . 165 . . 33 158 232 141 228 340 279 329 286 436 305 408 120 56 . 468 303 205 157 280 473 Average 326 | . 97 45 259 165 . 80 150 301 287 205 471 373 503 410 521 446 537 438 100 44 486 734 300 208 375 244 654 Maximum Alert Level 3 | . 1 . 2 . . . 1 2 2 2 2 1 2 2 3 2 3 2 . . 3 3 1 1 2 2 3 Low Security (%) 35 | 100 75 100 24 100 . 100 87 30 8 57 . . . . . . . . 100 100 33 . . . 13 47 . Level 1 27 | . 24 . 60 . . . 12 47 87 32 39 100 26 48 34 . 22 16 . . 3 . 100 100 28 31 . Level 2 27 | . . . 14 . . . . 21 3 10 60 . 73 51 47 100 51 83 . . 24 16 . . 57 20 61 Level 3 8 | . . . . . . . . . . . . . . . 18 . 25 . . . 37 83 . . . . 38 Level 4 . | . . . . . . . . . . . . . . . . . . . . . . . . . . . . Level 5 . | . . . . . . . . . . . . . . . . . . . . . . . . . . . . High Security . | . . . . . . . . . . . . . . . . . . . . . . . . . . . . Max Security . | . . . . . . . . . . . . . . . . . . . . . . . . . . . . Squads Dispatched 37 | . 1 . 3 . . . 5 . 1 2 . . . 3 . 2 . 2 . 3 . 3 . . . 12 . Investigation 5 | . 1 . . . . . 1 . 1 . . . . . . 1 . . . 1 . . . . . . . Extermination 6 | . . . . . . . . . . 1 . . . . . . . 1 . 1 . . . . . 3 . Reinforcement 15 | . . . 3 . . . 2 . . 1 . . . . . . . . . 1 . 2 . . . 6 . Assault 2 | . . . . . . . . . . . . . . 2 . . . . . . . . . . . . . Garrison 9 | . . . . . . . 2 . . . . . . 1 . 1 . 1 . . . 1 . . . 3 . Intercept . | . . . . . . . . . . . . . . . . . . . . . . . . . . . . Construction Impeded 5 | . . . . . . . . . . 1 . . . . . . . . . . . 2 . . . 2 . Haulers Reinforced 1 | . . . . . . . . . . . . . . . . . . . . . . . . . . 1 . Stealth | -11 -10 -10 -9 -9 -9 -8 -8 -8 -8 -7 -7 -7 -7 -6 -6 -6 -6 -5 -5 -5 -5 -4 -4 -4 -4 -3 -3 --------- Run | Scr Mat Min Mat Min Exi Min Mat Gar Mat Fac Gar Fac Gar Fac Gar Fac Gar Fac Was Fac Gar Fac Was Fac Gar Res Gar Distress Signals 16 | . 2 . 3 . . . 7 . 2 . . . . 1 . . . . . . . 1 . . . . . Communications Jammed . | . . . . . . . . . . . . . . . . . . . . . . . . . . . . Distress Signals . | . . . . . . . . . . . . . . . . . . . . . . . . . . . . Times Spotted 446 | . 12 . 32 . . 3 34 12 23 17 16 2 15 24 19 8 20 7 6 19 24 33 6 7 32 58 17 Peak Tracking Total 12 | . 4 . 5 . . 3 6 3 5 3 7 1 4 6 4 5 4 3 6 4 5 12 6 4 9 5 6 Tactical Retreats 18 | . . . 1 . . . 2 2 . 2 2 . . . . . . . . 3 1 2 . . . 1 2 Traps | -11 -10 -10 -9 -9 -9 -8 -8 -8 -8 -7 -7 -7 -7 -6 -6 -6 -6 -5 -5 -5 -5 -4 -4 -4 -4 -3 -3 ------- Run | Scr Mat Min Mat Min Exi Min Mat Gar Mat Fac Gar Fac Gar Fac Gar Fac Gar Fac Was Fac Gar Fac Was Fac Gar Res Gar Traps Triggered 60 | . 1 . 1 . . . 1 5 3 1 4 . 4 1 9 1 3 2 . 4 7 1 . 1 8 3 . Indirectly 5 | . . . . . . . . . . . 4 . . . . 1 . . . . . . . . . . . Trap Hack Attempts . | . . . . . . . . . . . . . . . . . . . . . . . . . . . . Triggered . | . . . . . . . . . . . . . . . . . . . . . . . . . . . . Disarmed . | . . . . . . . . . . . . . . . . . . . . . . . . . . . . Reprogrammed . | . . . . . . . . . . . . . . . . . . . . . . . . . . . . Reused . | . . . . . . . . . . . . . . . . . . . . . . . . . . . . Traps Extracted . | . . . . . . . . . . . . . . . . . . . . . . . . . . . . Installed . | . . . . . . . . . . . . . . . . . . . . . . . . . . . . Triggered . | . . . . . . . . . . . . . . . . . . . . . . . . . . . . Machines | -11 -10 -10 -9 -9 -9 -8 -8 -8 -8 -7 -7 -7 -7 -6 -6 -6 -6 -5 -5 -5 -5 -4 -4 -4 -4 -3 -3 ---------- Run | Scr Mat Min Mat Min Exi Min Mat Gar Mat Fac Gar Fac Gar Fac Gar Fac Gar Fac Was Fac Gar Fac Was Fac Gar Res Gar Machines Disabled 45 | . 4 . 2 . . . 1 2 4 5 2 . 1 1 4 . 3 . . . 4 6 . . 4 1 1 Max in Single Turn 3 | . 3 . 1 . . . 1 1 2 2 1 . 1 1 1 . 1 . . . 1 1 . . 1 1 1 Garrison Access 1 | . . . . . . . . . . . . . . . . . . . . . . 1 . . . . . Garrison Relay 21 | . . . . . . . . 2 . . 2 . 1 . 4 . 3 . . . 4 . . . 4 . 1 Machines Sabotaged . | . . . . . . . . . . . . . . . . . . . . . . . . . . . . Garrisons Compromised . | . . . . . . . . . . . . . . . . . . . . . . . . . . . . Overloaded Fab Kills . | . . . . . . . . . . . . . . . . . . . . . . . . . . . . Fab Network Shutdowns . | . . . . . . . . . . . . . . . . . . . . . . . . . . . . Hacking | -11 -10 -10 -9 -9 -9 -8 -8 -8 -8 -7 -7 -7 -7 -6 -6 -6 -6 -5 -5 -5 -5 -4 -4 -4 -4 -3 -3 --------- Run | Scr Mat Min Mat Min Exi Min Mat Gar Mat Fac Gar Fac Gar Fac Gar Fac Gar Fac Was Fac Gar Fac Was Fac Gar Res Gar Machines Accessed 55 | . 3 . 4 . 5 . 4 . 6 9 . 4 . 4 . 1 . 3 . 5 . 5 . 1 . 1 . Terminals 27 | . 3 . 2 . . . 3 . 5 7 . 2 . . . . . 2 . 2 . 1 . . . . . Fabricators 4 | . . . . . . . . . . 1 . . . 1 . . . . . . . 2 . . . . . Repair Stations 3 | . . . . . . . . . . . . 1 . 1 . . . . . . . 1 . . . . . Recycling Units . | . . . . . . . . . . . . . . . . . . . . . . . . . . . . Scanalyzers 7 | . . . 2 . . . . . 1 . . . . 1 . . . 1 . 2 . . . . . . . Garrison Access 9 | . . . . . . . 1 . . 1 . 1 . 1 . 1 . . . 1 . 1 . 1 . 1 . Total Hacks 153 | . 11 . 13 . 10 . 14 . 25 24 . 10 . 8 . 1 . 4 . 22 . 9 . 1 . 1 . Successful 95 | . 8 . 11 . 10 . 8 . 15 12 . 3 . 6 . 1 . 2 . 13 . 4 . 1 . 1 . Failed 57 | . 2 . 2 . . . 6 . 10 12 . 7 . 2 . . . 2 . 9 . 5 . . . . . Catastrophic 7 | . . . . . . . . . . 2 . 1 . . . . . 1 . 2 . 1 . . . . . Database Lockouts 1 | . 1 . . . . . . . . . . . . . . . . . . . . . . . . . . Manual 60 | . 7 . 3 . 1 . 8 . 12 5 . 5 . . . . . 1 . 14 . 4 . . . . . Terminals 90 | . 11 . 4 . . . 9 . 19 19 . 7 . . . . . 3 . 16 . 2 . . . . . Fabricators 9 | . . . . . . . . . . 4 . . . 2 . . . . . . . 3 . . . . . Repair Stations 5 | . . . . . . . . . . . . 2 . 1 . . . . . . . 2 . . . . . Recycling Units . | . . . . . . . . . . . . . . . . . . . . . . . . . . . . Scanalyzers 23 | . . . 9 . . . . . 6 . . . . 3 . . . 1 . 4 . . . . . . . Garrison Access 16 | . . . . . . . 5 . . 1 . 1 . 2 . 1 . . . 2 . 2 . 1 . 1 . Terminal Hacks 41 | . 5 . 2 . 10 . 1 . 8 7 . 1 . . . . . 2 . 5 . . . . . . . Record 11 | . . . . . 9 . . . 1 . . . . . . . . . . 1 . . . . . . . Part Schematic 2 | . . . . . . . . . . 1 . . . . . . . . . 1 . . . . . . . Robot Analysis 6 | . 1 . 1 . . . . . . 2 . . . . . . . 2 . . . . . . . . . Prototype ID Bank 5 | . 2 . 1 . . . . . 2 . . . . . . . . . . . . . . . . . . Terminal Index 4 | . 1 . . . . . . . 1 1 . . . . . . . . . 1 . . . . . . . Garrison Index 1 | . . . . . . . . . . 1 . . . . . . . . . . . . . . . . . Unreport Threat 2 | . . . . . . . . . 1 1 . . . . . . . . . . . . . . . . . Locate Traps 7 | . 1 . . . . . 1 . 1 1 . 1 . . . . . . . 2 . . . . . . . Recall Investigation 1 | . . . . . . . . . 1 . . . . . . . . . . . . . . . . . . Zone Layout 1 | . . . . . . . . . 1 . . . . . . . . . . . . . . . . . . EX-Prototype ID Bank 1 | . . . . . 1 . . . . . . . . . . . . . . . . . . . . . . Fabricator Hacks 6 | . . . . . . . . . . 3 . . . 2 . . . . . . . 1 . . . . . Network Status 1 | . . . . . . . . . . 1 . . . . . . . . . . . . . . . . . Load Schematic 3 | . . . . . . . . . . 1 . . . 1 . . . . . . . 1 . . . . . Build 2 | . . . . . . . . . . 1 . . . 1 . . . . . . . . . . . . . Repair Station Hacks . | . . . . . . . . . . . . . . . . . . . . . . . . . . . . Recycling Unit Hacks . | . . . . . . . . . . . . . . . . . . . . . . . . . . . . Scanalyzer 17 | . . . 8 . . . . . 4 . . . . 2 . . . . . 3 . . . . . . . Insert Component 9 | . . . 4 . . . . . 2 . . . . 1 . . . . . 2 . . . . . . . Analyze 8 | . . . 4 . . . . . 2 . . . . 1 . . . . . 1 . . . . . . . Garrison Access Hacks 12 | . . . . . . . 2 . . 1 . 1 . 2 . 1 . . . 1 . 2 . 1 . 1 . Unlock Access 9 | . . . . . . . 1 . . 1 . 1 . 1 . 1 . . . 1 . 1 . 1 . 1 . Seal Access 1 | . . . . . . . . . . . . . . . . . . . . . . 1 . . . . . Coupler Status 2 | . . . . . . . 1 . . . . . . 1 . . . . . . . . . . . . . Unauthorized Hacks 19 | . 3 . 1 . . . 5 . 3 1 . 1 . . . . . . . 4 . 1 . . . . . Terminals 17 | . 3 . 1 . . . 3 . 3 1 . 1 . . . . . . . 4 . 1 . . . . . Track 3 | . 1 . 1 . . . . . 1 . . . . . . . . . . . . . . . . . . Botnet 7 | . 1 . . . . . 2 . 1 1 . . . . . . . . . 2 . . . . . . . Operators 7 | . 1 . . . . . 1 . 1 . . 1 . . . . . . . 2 . 1 . . . . . Fabricators . | . . . . . . . . . . . . . . . . . . . . . . . . . . . . Repair Stations . | . . . . . . . . . . . . . . . . . . . . . . . . . . . . Recycling Units . | . . . . . . . . . . . . . . . . . . . . . . . . . . . . Scanalyzers . | . . . . . . . . . . . . . . . . . . . . . . . . . . . . Garrison Access 2 | . . . . . . . 2 . . . . . . . . . . . . . . . . . . . . Broadcast 1 | . . . . . . . 1 . . . . . . . . . . . . . . . . . . . . Watchers 1 | . . . . . . . 1 . . . . . . . . . . . . . . . . . . . . Data Cores Recovered . | . . . . . . . . . . . . . . . . . . . . . . . . . . . . Used . | . . . . . . . . . . . . . . . . . . . . . . . . . . . . Hacking Detections 44 | . 3 . 4 . . . 4 . 6 8 . 3 . 2 . 1 . 3 . 4 . 5 . . . 1 . Full Trace Events 1 | . . . . . . . . . . . . . . . . . . . . 1 . . . . . . . Feedback Events . | . . . . . . . . . . . . . . . . . . . . . . . . . . . . Feedback Blocked . | . . . . . . . . . . . . . . . . . . . . . . . . . . . . Robot Schematics Acquired . | . . . . . . . . . . . . . . . . . . . . . . . . . . . . Robots Built . | . . . . . . . . . . . . . . . . . . . . . . . . . . . . Matter . | . . . . . . . . . . . . . . . . . . . . . . . . . . . . Time . | . . . . . . . . . . . . . . . . . . . . . . . . . . . . Total Robot Build Rating . | . . . . . . . . . . . . . . . . . . . . . . . . . . . . Part Schematics Acquired 9 | . . . 4 . . . . . 2 1 . . . . . . . . . 2 . . . . . . . Parts Built 3 | . . . . . . . . . . 1 . . . 2 . . . . . . . . . . . . . Matter 336 | . . . . . . . . . . 168 . . . 168 . . . . . . . . . . . . . Time 84 | . . . . . . . . . . 42 . . . 42 . . . . . . . . . . . . . Total Part Build Rating 12 | . . . . . . . . . . 4 . . . 8 . . . . . . . . . . . . . Parts Repaired . | . . . . . . . . . . . . . . . . . . . . . . . . . . . . Time . | . . . . . . . . . . . . . . . . . . . . . . . . . . . . Parts Recycled . | . . . . . . . . . . . . . . . . . . . . . . . . . . . . Recycled Matter . | . . . . . . . . . . . . . . . . . . . . . . . . . . . . Retrieved Matter . | . . . . . . . . . . . . . . . . . . . . . . . . . . . . Retrieved Components . | . . . . . . . . . . . . . . . . . . . . . . . . . . . . Parts Scanalyzed 9 | . . . 4 . . . . . 2 . . . . 1 . . . . . 2 . . . . . . . Part Schematics Acquired 7 | . . . 4 . . . . . 2 . . . . . . . . . . 1 . . . . . . . Parts Damaged 2 | . . . 2 . . . . . . . . . . . . . . . . . . . . . . . . Bothacking | -11 -10 -10 -9 -9 -9 -8 -8 -8 -8 -7 -7 -7 -7 -6 -6 -6 -6 -5 -5 -5 -5 -4 -4 -4 -4 -3 -3 ------------ Run | Scr Mat Min Mat Min Exi Min Mat Gar Mat Fac Gar Fac Gar Fac Gar Fac Gar Fac Was Fac Gar Fac Was Fac Gar Res Gar Used RIF Installer 7 | . . . . . . . . 1 . . 1 . 1 . 1 . 1 . . . 1 . . . 1 . . Zone Cloak 2 | . . . . . . . . . . . 1 . 1 . . . . . . . . . . . . . . Robot Detection 1 | . . . . . . . . . . . . . . . . . . . . . . . . . 1 . . Patrol Navigation 1 | . . . . . . . . . . . . . . . 1 . . . . . . . . . . . . Autoassimilate 2 | . . . . . . . . . . . . . . . . . 1 . . . 1 . . . . . . Robots Hacked 89 | . . . . . . . . . . . . . . 2 13 2 13 . . 5 7 5 . 1 11 20 10 Non-combat 4 | . . . . . . . . . . . . . . . . . . . . 3 . . . 1 . . . Combat 85 | . . . . . . . . . . . . . . 2 13 2 13 . . 2 7 5 . . 11 20 10 Autoassimilated 21 | . . . . . . . . . . . . . . . . . . . . 1 4 1 . . 2 7 6 Robot Hacks Applied 72 | . . . . . . . . . . . . . . 2 14 3 13 . . 4 3 4 . 2 9 14 4 parse_system 6 | . . . . . . . . . . . . . . . . 2 1 . . . . 1 . . 1 1 . find_station 1 | . . . . . . . . . . . . . . . . . . . . 1 . . . . . . . find_terminals 1 | . . . . . . . . . . . . . . . . . . . . 1 . . . . . . . map_route 2 | . . . . . . . . . . . . . . . . . . . . 1 . . . 1 . . . spike_heat 1 | . . . . . . . . . . . . . . . . . . . . . . 1 . . . . . overload_power 4 | . . . . . . . . . . . . . . . 1 . . . . . . . . . 1 1 1 disable_weapons 4 | . . . . . . . . . . . . . . . . 1 1 . . . . . . . . 1 1 go_dormant 1 | . . . . . . . . . . . . . . . . . . . . . . 1 . . . . . overwrite_iff 7 | . . . . . . . . . . . . . . . 1 . 5 . . . . . . . . 1 . streamctrl_high 10 | . . . . . . . . . . . . . . 1 4 . . . . . . . . . 3 2 . formatsys_high 35 | . . . . . . . . . . . . . . 1 8 . 6 . . 1 3 1 . 1 4 8 2 Relay Couplers Released 86 | . . . . . . . . 6 . . 7 . 3 4 16 . 15 . . . 13 . . . 18 . 4 Machine Destruction 82 | . . . . . . . . 6 . . 7 . 3 . 16 . 15 . . . 13 . . . 18 . 4 Programmers 4 | . . . . . . . . . . . . . . 4 . . . . . . . . . . . . . Attached 44 | . . . . . . . . . . . . . . 1 8 2 6 1 1 2 3 1 . . 12 5 2 Robots Rewired 7 | . . . . . . . . . . . . . . . . . . . . . 6 1 . . . . . Allies Hacked 4 | . . . . . . . . . . 1 . . . . . . . . . . . . . . . 3 . Hacks Repelled . | . . . . . . . . . . . . . . . . . . . . . . . . . . . . Allies | -11 -10 -10 -9 -9 -9 -8 -8 -8 -8 -7 -7 -7 -7 -6 -6 -6 -6 -5 -5 -5 -5 -4 -4 -4 -4 -3 -3 -------- Run | Scr Mat Min Mat Min Exi Min Mat Gar Mat Fac Gar Fac Gar Fac Gar Fac Gar Fac Was Fac Gar Fac Was Fac Gar Res Gar Total Allies 86 | . . 3 . . . . . . . 3 . . . 2 12 . 11 . . 2 13 3 . 1 9 19 8 Largest Group 11 | . . 3 3 . . . . . . 3 . . . 2 8 8 5 4 . 2 11 9 . 1 2 4 8 Highest-Rated Group 413 | . . 40 40 . . . . . . 93 . . . 64 244 244 181 119 . 98 413 334 . 37 164 240 379 Highest-Rated Ally 115 | . . 16 16 . . . . . . 31 . . . 32 41 41 47 32 . 49 46 47 . 37 115 64 64 Total Orders 102 | . . . . . . . . . . . . . . . 11 . 12 2 . 2 27 5 . 1 8 21 13 STAY 51 | . . . . . . . . . . . . . . . 6 . 6 1 . 1 13 3 . . 5 9 7 ROAM 1 | . . . . . . . . . . . . . . . . . . . . . . . . 1 . . . FOLLOW 45 | . . . . . . . . . . . . . . . 5 . 6 1 . 1 14 2 . . 3 8 5 GUARD 1 | . . . . . . . . . . . . . . . . . . . . . . . . . . 1 . AID 1 | . . . . . . . . . . . . . . . . . . . . . . . . . . . 1 EXPLORE 2 | . . . . . . . . . . . . . . . . . . . . . . . . . . 2 . RETURN 1 | . . . . . . . . . . . . . . . . . . . . . . . . . . 1 . Ally Attacks 738 | . . . 60 . . . . . . 64 . . . 4 40 47 80 13 . 19 64 125 . . 45 135 42 Total Damage 18807 | . . . 543 . . . . . . 859 . . . 225 731 1019 1526 304 . 852 1890 3102 . . 2372 4015 1369 Kills 126 | . . . 12 . . . . . . 6 . . . 1 9 5 14 2 . 7 14 16 . . 8 22 10 Allies Corrupted 4 | . . . . . . . . . . . . . . . . . . . . . . 1 . . 1 2 . Allies Melted 1 | . . . . . . . . . . . . . . . . . . . . . . 1 . . . . . Intel | -11 -10 -10 -9 -9 -9 -8 -8 -8 -8 -7 -7 -7 -7 -6 -6 -6 -6 -5 -5 -5 -5 -4 -4 -4 -4 -3 -3 ------- Run | Scr Mat Min Mat Min Exi Min Mat Gar Mat Fac Gar Fac Gar Fac Gar Fac Gar Fac Was Fac Gar Fac Was Fac Gar Res Gar Robot Analysis Total 6 | . 1 . 1 . . . . . . 2 . . . . . . . 2 . . . . . . . . . Derelict Logs Recovered 2 | . . 2 . . . . . . . . . . . . . . . . . . . . . . . . . Drone Launches 2 | . . . . . . . . . . . . . . . . . . . . . . . . . . 2 . Drone Recoveries 2 | . . . . . . . . . . . . . . . . . . . . . . . . . . 2 . Exploration | -11 -10 -10 -9 -9 -9 -8 -8 -8 -8 -7 -7 -7 -7 -6 -6 -6 -6 -5 -5 -5 -5 -4 -4 -4 -4 -3 -3 ------------- Run | Scr Mat Min Mat Min Exi Min Mat Gar Mat Fac Gar Fac Gar Fac Gar Fac Gar Fac Was Fac Gar Fac Was Fac Gar Res Gar Turns Passed 22985 | 71 689 912 754 199 1022 78 1425 685 1039 1398 640 352 549 821 1095 147 1174 478 99 1212 1863 643 113 149 1997 2839 542 Spaces Moved 12392 | 41 344 497 340 111 564 34 500 267 601 891 358 258 267 455 643 101 721 318 82 784 1081 441 86 122 904 1304 277 Core 18 | 15 . . . . . . . . . . . . . . . . . . . . . 1 . . . 2 . Treads 3677 | 26 344 497 340 111 564 34 500 267 4 . . . . . . . . . . . . . . . 413 577 . Legs 1012 | . . . . . . . . . . . . . . . . . . . . . . . . . 348 664 . Wheels 7685 | . . . . . . . . . 597 891 358 258 267 455 643 101 721 318 82 784 1081 440 86 122 143 61 277 Hover . | . . . . . . . . . . . . . . . . . . . . . . . . . . . . Flight . | . . . . . . . . . . . . . . . . . . . . . . . . . . . . Fastest Speed 50 | 50 160 180 180 180 180 180 180 185 120 130 130 130 130 130 130 130 130 130 100 100 120 120 120 120 120 130 105 Average Speed 150 | 149 170 180 180 180 180 180 201 207 130 135 130 130 130 133 130 130 130 132 115 117 129 123 126 120 178 182 121 Slowest Speed 1300 | 200 180 180 200 180 180 180 205 240 240 140 130 130 130 140 130 130 130 140 140 130 130 1300 130 120 240 1300 130 Overloaded Moves . | . . . . . . . . . . . . . . . . . . . . . . . . . . . . Propulsion Burnouts . | . . . . . . . . . . . . . . . . . . . . . . . . . . . . Robots Hopped . | . . . . . . . . . . . . . . . . . . . . . . . . . . . . Cave-ins Triggered . | . . . . . . . . . . . . . . . . . . . . . . . . . . . . Exploration Rate (%) 42 | 4 51 98 40 35 70 7 47 42 61 33 56 12 50 11 78 5 57 15 75 22 63 16 73 6 90 49 25 Regions Visited 27 Branch Regions 4 Pre-discovered Areas 2 | . . 1 . . 1 . . . . . . . . . . . . . . . . . . . . . . Known Exits Taken 9 | . . 1 . . . . 1 . . 1 . 1 . 1 . 1 . . . 1 . . . 1 . 1 . Unknown Exits Taken 7 | 1 1 . 1 1 1 1 . . 1 . . . . . . . . . . . . . . . . . . Scrap Searched 2 | . . 1 . 1 . . . . . . . . . . . . . . . . . . . . . . . Spaces Dug 42 | . . . . . . . . . 6 12 2 . . 17 . . . . . 4 . . . . . 1 . Terrain Destroyed 547 | . . . 42 . . 22 . 1 60 95 2 . 1 89 1 . . . . 4 4 . . . 6 173 47 Melee 5 | . . . . . . . . . . 1 . . . 3 . . . . . . . . . . . 1 . Projectile 20 | . . . . . . . . 1 1 . . . 1 . . . . . . 4 4 . . . 6 3 . AOE 522 | . . . 42 . . 22 . . 59 94 2 . . 86 1 . . . . . . . . . . 169 47 Terrain Rammed . | . . . . . . . . . . . . . . . . . . . . . . . . . . . . Walls Destroyed . | . . . . . . . . . . . . . . . . . . . . . . . . . . . . Machines Disabled . | . . . . . . . . . . . . . . . . . . . . . . . . . . . . Actions | -11 -10 -10 -9 -9 -9 -8 -8 -8 -8 -7 -7 -7 -7 -6 -6 -6 -6 -5 -5 -5 -5 -4 -4 -4 -4 -3 -3 --------- Run | Scr Mat Min Mat Min Exi Min Mat Gar Mat Fac Gar Fac Gar Fac Gar Fac Gar Fac Was Fac Gar Fac Was Fac Gar Res Gar Total 15667 | 48 396 512 409 111 572 43 757 359 788 1042 486 272 384 620 874 118 910 358 85 1043 1464 520 89 124 1196 1634 453 Wait 1623 | . 14 9 4 . . 3 116 30 103 85 80 2 35 110 83 8 97 23 2 190 187 44 2 1 139 139 117 Move 12359 | 40 343 496 339 110 563 33 499 265 600 890 356 257 265 454 641 100 719 318 81 783 1078 441 85 121 902 1303 277 Hop . | . . . . . . . . . . . . . . . . . . . . . . . . . . . . Pick Up 200 | 1 5 3 15 1 1 1 14 8 12 14 6 5 2 9 12 2 8 3 . 11 15 6 1 . 24 16 5 Fast Attach 98 | 6 1 . 3 . 1 . 5 . 2 4 . 1 . 1 4 . 2 1 2 11 4 5 1 . 18 21 5 Attach 105 | . 1 . 4 . . 1 7 2 4 2 4 . 3 7 8 2 8 4 . 3 4 2 . . 19 17 3 Detach 30 | . . . 1 . 1 . . . 1 . . . . . 6 1 3 . . 2 1 . . . 6 6 2 Swap 62 | 1 2 2 1 . 2 1 7 5 8 3 1 . 1 7 1 . . . . 4 4 1 . . 1 8 2 Drop 125 | . 3 . 3 . 4 . 11 3 11 16 3 5 2 3 5 2 5 . . 2 13 1 . . 12 14 7 Fire 758 | . 26 . 39 . . 4 98 37 47 26 36 2 44 25 41 3 44 9 . 20 49 20 . 2 62 91 33 Melee 22 | . . . . . . . . . . 1 . . . 3 . . . . . . . . . . 4 14 . Ram 3 | . . . . . . . . . . 1 . . . 1 . . . . . 1 . . . . . . . Kick 1 | . . . . . . . . . . . . . . . . . . . . . . . . . . 1 . Crush 3 | . 1 2 . . . . . . . . . . . . . . . . . . . . . . . . . Escape Stasis 209 | . . . . . . . . 9 . . . . 32 . 72 . 24 . . 16 45 . . . 9 2 . Rewire 69 | . . . . . . . . . . . . . . . 1 . . . . . 64 . . . . 2 2 Trap . | . . . . . . . . . . . . . . . . . . . . . . . . . . . . Miscellaneous . | . . . . . . . . . . . . . . . . . . . . . . . . . . . . Route ------- -11/Scrapyard -10/Materials (discovered 3 exits: *Mat / [*Min x2]) -10/Mines (discovered 2 exits: *Mat x2) -9/Materials (discovered 2 exits: *Mat / [*Min]) -9/Mines -9/Exiles -8/Mines -8/Materials (discovered 2 exits: *Fac / Gar) -8/Garrison -8/Materials (discovered 2 exits: *Fac x2) -7/Factory (discovered 3 exits: *Fac x2 / Gar) -7/Garrison -7/Factory -7/Garrison -6/Factory -6/Garrison (discovered 3 exits: *Fac x3) -6/Factory -6/Garrison (discovered 2 exits: *Fac x2) -5/Factory -5/Waste -5/Factory (discovered 2 exits: *Fac / Gar) -5/Garrison (discovered 2 exits: *Fac x2) -4/Factory -4/Waste -4/Factory -4/Garrison (discovered 3 exits: *Res x3) -3/Research (discovered 4 exits: [*Res x2] / [*Arm] / Gar) -3/Garrison History --------- Turn | Location | Event 20 | -11/Scrapyard | Discovered new exit (range 14) 72 | -11/Scrapyard | Entered Materials 288 | -10/Materials | Discovered new exit (range 5) 307 | -10/Materials | Build established: Mutant 434 | -10/Materials | Discovered new exit (range 9) 530 | -10/Materials | Central database locked down 587 | -10/Materials | Discovered new exit (range 8) 761 | -10/Materials | Entered Mines 801 | -10/Mines | Learned location of Zion (-7) 977 | -10/Mines | A weapon hastily lodged in a ceiling crevice suddenly fell to the ground 1152 | -10/Mines | Found a damaged Exp. Sensor Array with a note attached 1155 | -10/Mines | Found Prototype Device 1235 | -10/Mines | Discovered new exit (range 9) 1388 | -10/Mines | Identified exit to Materials 1421 | -10/Mines | Assisted by bots powering up and referring to "LRC-V3" 1673 | -10/Mines | Entered Materials 1673 | -9/Materials | Accompanied by 3 allies 1673 | -9/Materials | Evolved 2 slots: Utility x2 1934 | -9/Materials | Discovered new exit (range 10) 1988 | -9/Materials | Identified Exp. Sensor Array 2142 | -9/Materials | Build established: Hauler-Mutant 2316 | -9/Materials | Discovered new exit (range 14) 2427 | -9/Materials | Entered Mines 2456 | -9/Mines | Met a Derelict bent on vengeance 2619 | -9/Mines | Deemed a non-threat by the Exiles lab entrance 2619 | -9/Mines | Discovered new exit (range 5) 2626 | -9/Mines | Entered Exiles 2668 | -9/Exiles | Met 8R-AWN 2700 | -9/Exiles | Met EX-HEX 2779 | -9/Exiles | Met EX-DEC 2974 | -9/Exiles | Met EX-BIN 2996 | -9/Exiles | Aligned with FarCom system 2997 | -9/Exiles | Given EX-Vault access code 3039 | -9/Exiles | Opened EX-Vault 3116 | -9/Exiles | Warned to stay clear of 0b10 Research branches 3476 | -9/Exiles | Found AWS/Autocannon 3633 | -9/Exiles | Discovered new exit (range 10) 3648 | -9/Exiles | Left Exiles lab with AWS/Autocannon 3648 | -9/Exiles | Entered Mines 3712 | -8/Mines | Discovered new exit (range 5) 3726 | -8/Mines | Entered Materials 3726 | -8/Materials | Evolved 2 slots: Utility x2 4347 | -8/Materials | Lost 3 parts (1p1u1w) 4505 | -8/Materials | Discovered new exit (range 8) 4984 | -8/Materials | Garrison activated, responded to threat 5095 | -8/Materials | Garrison activated, responded to threat 5144 | -8/Materials | Identified exit to Garrison 5151 | -8/Materials | Entered Garrison 5161 | -8/Garrison | Installed Relay Interface Framework 5231 | -8/Garrison | Triggered checkpoint 5350 | -8/Garrison | Triggered checkpoint 5409 | -8/Garrison | Garrison Relay disabled 5528 | -8/Garrison | Triggered checkpoint 5642 | -8/Garrison | Triggered checkpoint 5687 | -8/Garrison | Garrison Relay disabled 5706 | -8/Garrison | Triggered checkpoint 5803 | -8/Garrison | Discovered new exit (range 13) 5836 | -8/Garrison | Entered Materials 6153 | -8/Materials | Discovered new exit (range 11) 6728 | -8/Materials | Core integrity fell below 50% 6838 | -8/Materials | Discovered new exit (range 14) 6875 | -8/Materials | Entered Factory 6875 | -7/Factory | Evolved 2 slots: Utility x2 7493 | -7/Factory | Allied Derelicts emerged from ambush trap array 7583 | -7/Factory | Discovered new exit (range 15) 7772 | -7/Factory | P-60 Hacker assimilated allied C6-6WH(g) 7811 | -7/Factory | Fabricated Hvy. Battle Rifle (x1) 8195 | -7/Factory | Discovered new exit (range 15) 8272 | -7/Factory | Identified exit to Garrison 8273 | -7/Factory | Entered Garrison 8310 | -7/Garrison | Triggered checkpoint 8316 | -7/Garrison | Garrison Relay disabled 8363 | -7/Garrison | Triggered checkpoint 8500 | -7/Garrison | Triggered checkpoint 8525 | -7/Garrison | Triggered checkpoint 8583 | -7/Garrison | Destroyed 9 combat bots 8747 | -7/Garrison | Discovered new exit (range 15) 8776 | -7/Garrison | Expanded RIF knowledge: Zone Cloak 8808 | -7/Garrison | Triggered checkpoint 8850 | -7/Garrison | Garrison Relay disabled 8913 | -7/Garrison | Entered Factory 9066 | -7/Factory | Build established: Bothacker-Mutant 9257 | -7/Factory | Identified exit to Garrison 9265 | -7/Factory | Entered Garrison 9272 | -7/Garrison | Expanded RIF knowledge: Zone Cloak 9366 | -7/Garrison | Triggered checkpoint 9408 | -7/Garrison | Garrison Relay disabled 9708 | -7/Garrison | Triggered checkpoint 9723 | -7/Garrison | Spotted B-75 Beast 9724 | -7/Garrison | Spotted B-75 Beast 9794 | -7/Garrison | Discovered new exit (range 15) 9814 | -7/Garrison | Entered Factory 9814 | -6/Factory | Evolved 2 slots: Utility x1, Weapon x1 10162 | -6/Factory | Fabricated Arm. Huge Wheel (x2) 10164 | -6/Factory | First assault squad dispatched 10634 | -6/Factory | Identified exit to Garrison 10635 | -6/Factory | Entered Garrison 10635 | -6/Garrison | Accompanied by 1 ally 10652 | -6/Garrison | Triggered checkpoint 10766 | -6/Garrison | Garrison Relay disabled 10843 | -6/Garrison | Triggered checkpoint 10870 | -6/Garrison | Triggered checkpoint 10889 | -6/Garrison | Triggered checkpoint 10984 | -6/Garrison | Triggered checkpoint 11029 | -6/Garrison | Garrison Relay disabled 11085 | -6/Garrison | Discovered new exit (range 8) 11246 | -6/Garrison | Triggered checkpoint 11284 | -6/Garrison | Garrison Relay disabled 11325 | -6/Garrison | Discovered new exit (range 10) 11426 | -6/Garrison | Triggered checkpoint 11526 | -6/Garrison | Triggered checkpoint 11570 | -6/Garrison | Garrison Relay disabled 11600 | -6/Garrison | Discovered new exit (range 14) 11623 | -6/Garrison | Expanded RIF knowledge: Watcher Feeds 11730 | -6/Garrison | Entered Factory 11730 | -6/Factory | Accompanied by 8 allies 11851 | -6/Factory | Garrison activated, responded to threat 11853 | -6/Factory | Identified exit to Garrison 11877 | -6/Factory | Entered Garrison 11912 | -6/Garrison | Build established: Botlord-Mutant 11982 | -6/Garrison | Triggered checkpoint 12015 | -6/Garrison | Garrison Relay disabled 12122 | -6/Garrison | Triggered checkpoint 12195 | -6/Garrison | Discovered new exit (range 10) 12337 | -6/Garrison | Garrison Relay disabled 12498 | -6/Garrison | Triggered checkpoint 12592 | -6/Garrison | Triggered checkpoint 12684 | -6/Garrison | Triggered checkpoint 12768 | -6/Garrison | Discovered new exit (range 15) 12794 | -6/Garrison | Expanded RIF knowledge: Autoassimilate 12858 | -6/Garrison | Garrison Relay disabled 12952 | -6/Garrison | Triggered checkpoint 13051 | -6/Garrison | Entered Factory 13051 | -5/Factory | Accompanied by 4 allies 13051 | -5/Factory | Evolved 2 slots: Utility x2 13299 | -5/Factory | Garrison activated, responded to threat 13344 | -5/Factory | Found Prototype Processor 13344 | -5/Factory | Identified Exp. Signal Interpreter 13346 | -5/Factory | Found Exp. Signal Interpreter 13374 | -5/Factory | P-70 Sage assimilated allied Soldier 5k 13429 | -5/Factory | Lost 4 parts (1p2u1w) 13498 | -5/Factory | Build established: Hauler-Mutant 13529 | -5/Factory | Sucked down chute 13529 | -5/Factory | Entered Waste 13541 | -5/Waste | Spotted C-40 Crusher 13553 | -5/Waste | Spotted C-40 Crusher 13555 | -5/Waste | Spotted C-40 Crusher 13568 | -5/Waste | Spotted C-40 Crusher 13571 | -5/Waste | Crushed by Compactor (1 part destroyed, 2 dropped) 13575 | -5/Waste | Crushed by Compactor (1 part destroyed, 2 dropped) 13587 | -5/Waste | Spotted C-40 Crusher 13594 | -5/Waste | Crushed by Compactor (1 part destroyed) 13607 | -5/Waste | Spotted C-40 Crusher 13619 | -5/Waste | Discovered new exit (range 10) 13625 | -5/Waste | Lost 4 parts (3u1w) 13627 | -5/Waste | Identified exit to Factory 13628 | -5/Waste | Entered Factory 14161 | -5/Factory | Build established: Bothacker-Mutant 14708 | -5/Factory | Discovered new exit (range 23) 14732 | -5/Factory | Identified exit to Factory 14839 | -5/Factory | Identified exit to Garrison 14840 | -5/Factory | Entered Garrison 15397 | -5/Garrison | Triggered checkpoint 15422 | -5/Garrison | Triggered checkpoint 15598 | -5/Garrison | Triggered checkpoint 15619 | -5/Garrison | Garrison Relay disabled 15742 | -5/Garrison | Triggered checkpoint 15760 | -5/Garrison | Discovered exit to Factory (range 9) 15778 | -5/Garrison | Expanded RIF knowledge: Autoassimilate 15817 | -5/Garrison | Triggered checkpoint 15839 | -5/Garrison | Garrison Relay disabled 15923 | -5/Garrison | Build established: Botlord-Mutant 15935 | -5/Garrison | Discovered exit to Factory (range 8) 15969 | -5/Garrison | Triggered checkpoint 16037 | -5/Garrison | Garrison Relay disabled 16068 | -5/Garrison | Triggered checkpoint 16354 | -5/Garrison | Triggered checkpoint 16515 | -5/Garrison | Garrison Relay disabled 16703 | -5/Garrison | Entered Factory 16703 | -4/Factory | Accompanied by 9 allies 16703 | -4/Factory | Evolved 2 slots: Utility x2 16738 | -4/Factory | Identified exit to Garrison 16782 | -4/Factory | Lost 5 parts (1p1n2u1w) 17210 | -4/Factory | Discovered new exit (range 22) 17265 | -4/Factory | Identified exit to Upper Caves 17267 | -4/Factory | Garrison activated, responded to threat 17346 | -4/Factory | Sucked down chute 17346 | -4/Factory | Entered Waste 17358 | -4/Waste | Spotted C-40 Crusher 17358 | -4/Waste | Spotted C-40 Crusher 17359 | -4/Waste | Spotted C-40 Crusher 17383 | -4/Waste | Spotted C-40 Crusher 17398 | -4/Waste | Spotted C-40 Crusher 17400 | -4/Waste | Spotted C-40 Crusher 17426 | -4/Waste | Crushed by Compactor (1 part destroyed, 1 dropped) 17447 | -4/Waste | Discovered new exit (range 11) 17459 | -4/Waste | Entered Factory 17606 | -4/Factory | Identified exit to Garrison 17608 | -4/Factory | Entered Garrison 17642 | -4/Garrison | Triggered checkpoint 17650 | -4/Garrison | Garrison Relay disabled 17742 | -4/Garrison | Triggered checkpoint 17861 | -4/Garrison | Spotted B-86 Titan 17868 | -4/Garrison | Assimilated Titan 7a with formatsys_high 17887 | -4/Garrison | Core integrity fell below 50% 17919 | -4/Garrison | Lost 12 parts (1p2n4u5w) 18109 | -4/Garrison | Triggered checkpoint 18131 | -4/Garrison | Triggered checkpoint 18262 | -4/Garrison | Discovered new exit (range 15) 18364 | -4/Garrison | Triggered checkpoint 18459 | -4/Garrison | Garrison Relay disabled 18677 | -4/Garrison | Lost 3 parts (1n1u1w) 18852 | -4/Garrison | Discovered new exit (range 8) 18882 | -4/Garrison | Expanded RIF knowledge: Robot Detection 18992 | -4/Garrison | Lost 3 parts (2u1w) 19006 | -4/Garrison | Triggered checkpoint 19015 | -4/Garrison | Garrison Relay disabled 19207 | -4/Garrison | Discovered new exit (range 10) 19260 | -4/Garrison | Triggered checkpoint 19459 | -4/Garrison | Garrison Relay disabled 19605 | -4/Garrison | Entered Research 19605 | -3/Research | Accompanied by 1 ally 19605 | -3/Research | Evolved 2 slots: Utility x2 20201 | -3/Research | Allied Derelicts emerged from ambush trap array 20896 | -3/Research | System corruption reached 10% 20977 | -3/Research | Lost 7 parts (1n3u3w) 21246 | -3/Research | Discovered new exit (range 30) 21580 | -3/Research | Discovered new exit (range 131) 21738 | -3/Research | Found Unknown Launcher 21738 | -3/Research | Identified Fusion Bomb Launcher 21810 | -3/Research | Discovered new exit (range 26) 22030 | -3/Research | Garrison activated, responded to threat 22443 | -3/Research | Identified exit to Garrison 22444 | -3/Research | Entered Garrison 22444 | -3/Garrison | Accompanied by 1 ally 22514 | -3/Garrison | Triggered checkpoint 22555 | -3/Garrison | Garrison Relay disabled 22702 | -3/Garrison | Triggered checkpoint 22703 | -3/Garrison | Triggered checkpoint 22902 | -3/Garrison | Spotted B-86 Titan 22973 | -3/Garrison | Core integrity fell below 50% 22986 | -3/Garrison | Self-destructed Last Messages --------------- 22894_ BB2WXNR3ZDP1Y|OY/YEB3HO%6NTFRJTG3 22902_ Penetrated by Slug. 22907_ Veteran 8e knocked back. 22907_ Slug penetrates Wall. 22912_ System corrupted: Matter fused (-10). 22915_ Acquired 10 matter. 22933_ BOLDV9P